[Event "Czech Open Rapid G1 2024"]
[Site "Pardubice"]
[Date "2024.07.18"]
[Round "5.20"]
[White "Freisler, Pavel"]
[Black "Dorokhina, Elizaveta"]
[Result "1/2-1/2"]
[Annotator "RC"]
[ECO "D15"]
[WhiteElo "2261"]
[BlackElo "1962"]
[PlyCount "174"]
[EventDate "2024.07.16"]
[EventType "swiss"]
[EventCountry "CZE"]
[SourceTitle "playchess.com"]
[Source "ChessBase"]
[SourceQuality "1"]
[TimeControl "1200+10"]

1. Nf3 {[%emt 0:00:03]} d5 {[%emt 0:00:01]} 2. d4 {[%emt 0:00:06]} Bf5 {[%emt 0:00:12]} 3. c4 {[%emt 0:00:19]} e6 {[%emt 0:00:02]} 4. Nc3 {[%emt 0:00:35]} Nf6 {[%emt 0:00:09]} 5. Bg5 {[%emt 0:00:44]} c6 {[%emt 0:01:17]} 6. e3 {[%emt 0:00:17]} Nbd7 {[%emt 0:00:03]} 7. Bd3 {[%emt 0:00:02]} dxc4 {[%emt 0:01:51]} 8. Bxc4 {[%emt 0:00:03]} Qa5 {[%emt 0:00:04]} 9. O-O {[%emt 0:00:14]} Ne4 {[%emt 0:00:01]} 10. Nxe4 {[%emt 0:01:41]} Bxe4 {[%emt 0:00:02]} 11. Bf4 {[%emt 0:00:01]} Be7 {[%emt 0:00:09]} 12. Nd2 {[%emt 0:00:49]} Bg6 {[%emt 0:00:11]} 13. e4 {[%emt 0:01:01]} O-O {[%emt 0:00:16]} 14. Qe2 {[%emt 0:00:15]} e5 {[%emt 0:02:17]} 15. dxe5 {[%emt 0:02:47]} Nxe5 {[%emt 0:00:02]} 16. Bb3 {[%emt 0:00:02]} Kh8 {[%emt 0:00:46]} 17. Be3 {[%emt 0:00:27]} f6 {[%emt 0:02:05]} 18. f4 {[%emt 0:01:17]} Nd7 {[%emt 0:00:01]} 19. Rad1 {[%emt 0:00:02]} Nc5 {[%emt 0:00:21]} 20. Bc4 {[%emt 0:02:03]} b5 {[%emt 0:01:47]} 21. f5 {[%emt 0:01:43]} Be8 {[%emt 0:00:01]} 22. Nb3 {[%emt 0:00:07]} Nxb3 {[%emt 0:00:54]} 23. Bxb3 {[%emt 0:00:01]} c5 {[%emt 0:00:51]} 24. Bd5 {[%emt 0:01:01]} Rd8 {[%emt 0:00:16]} 25. a3 {[%emt 0:01:18]} c4 {[%emt 0:00:39]} 26. Rf4 {[%emt 0:01:12]} Qc7 {[%emt 0:02:19]} 27. Rh4 {[%emt 0:00:05]} g5 {[%emt 0:00:35]} 28. fxg6 {[%emt 0:00:22]} Bxg6 {[%emt 0:00:01]} 29. Qg4 {[%emt 0:01:51]} Bc5 {[%emt 0:01:57]} 30. Bxc5 Qxc5+ {[%emt 0:00:01]} 31. Kh1 {[%emt 0:00:15]} Kg7 {[%emt 0:00:31]} 32. Qf4 {[%emt 0:00:08]} Rg8 {[%emt 0:00:30]} 33. Rf1 {[%emt 0:00:31]} Qd6 {[%emt 0:01:26]} 34. Qh6+ {[%emt 0:01:50]} Kh8 {[%emt 0:00:01]} 35. Bxg8 {[%emt 0:00:04]} Rxg8 {[%emt 0:00:03]} 36. Qf4 {[%emt 0:00:15]} Qxf4 {[%emt 0:00:15]} 37. Rhxf4 {[%emt 0:00:02]} Re8 {[%emt 0:00:12]} 38. Rxf6 {[%emt 0:00:25]} Rxe4 {[%emt 0:00:01]} 39. Rf8+ {[%emt 0:00:04]} Kg7 {[%emt 0:00:01]} 40. Rb8 {[%emt 0:00:01]} Re5 {[%emt 0:00:54]} 41. Rb7+ {[%emt 0:00:13]} Kh6 {[%emt 0:00:01]} 42. Rxa7 {[%emt 0:00:01]} Bd3 {[%emt 0:00:06]} 43. Kg1 {[%emt 0:01:33]} Bxf1 {[%emt 0:00:40]} 44. Kxf1 {[%emt 0:00:01]} Re3 {[%emt 0:00:05]} 45. Ra6+ {[%emt 0:00:18]} Kg7 {[%emt 0:00:04]} 46. a4 {[%emt 0:00:21]} bxa4 {[%emt 0:00:26]} 47. Rxa4 {[%emt 0:00:01]} Rb3 {[%emt 0:00:09]} 48. Rxc4 {[%emt 0:00:09]} Rxb2 {[%emt 0:00:01]} 49. Rc6 {[%emt 0:00:01]} Rd2 {[%emt 0:00:07]} 50. h3 {[%emt 0:00:04]} Ra2 {[%emt 0:00:13]} 51. Kg1 {[%emt 0:00:01]} Ra3 {[%emt 0:00:20]} 52. Kh2 {[%emt 0:00:11]} h5 {[%emt 0:00:38]} 53. Rb6 {[%emt 0:00:16]} Kh7 {[%emt 0:00:02]} 54. Rf6 {[%emt 0:00:11]} Kg7 {[%emt 0:00:03]} 55. Rf3 {[%emt 0:00:01]} Ra4 {[%emt 0:00:04]} 56. Kg3 {[%emt 0:00:02]} Kg6 {[%emt 0:00:03]} 57. Rf4 {[%emt 0:00:03]} Ra3+ {[%emt 0:00:03]} 58. Kh4 {[%emt 0:00:02]} Ra2 {[%emt 0:01:02]} 59. g3 {[%emt 0:00:02]} Ra5 {[%emt 0:00:04]} 60. Re4 {[%emt 0:00:21]} Ra6 {[%emt 0:00:39]} 61. Rb4 {[%emt 0:00:02]} Rc6 {[%emt 0:00:18]} 62. Ra4 {[%emt 0:00:11]} Rb6 {[%emt 0:00:03]} 63. Ra8 {[%emt 0:00:02]} Rb4+ {[%emt 0:00:15]} 64. g4 {[%emt 0:00:01]} hxg4 {[%emt 0:00:18]} 65. hxg4 {[%emt 0:00:01]} Rb1 {[%emt 0:00:25]} 66. Ra6+ {[%emt 0:00:03]} Kg7 {[%emt 0:00:05]} 67. Kh5 {[%emt 0:00:02]} Rb5+ {[%emt 0:00:39]} 68. g5 {[%emt 0:00:03]} Rb1 {[%emt 0:00:25]} 69. Ra7+ {[%emt 0:00:02]} Kg8 {[%emt 0:00:15]} 70. Kh6 {[%emt 0:00:01]} Rb6+ {[%emt 0:00:11]} 71. g6 {[%emt 0:00:02]} Rb8 {[%emt 0:00:15]} 72. Rc7 {[%emt 0:00:05]} Ra8 {[%emt 0:00:09]} 73. Rc6 {[%emt 0:00:03]} Rb8 {[%emt 0:00:12]} 74. Rc7 {[%emt 0:00:51]} Ra8 {[%emt 0:00:02]} 75. Rg7+ {[%emt 0:00:01]} Kh8 {[%emt 0:00:16]} 76. Rf7 {[%emt 0:00:16]} Kg8 {[%emt 0:00:02]} 77. Rf6 {[%emt 0:00:02]} Ra1 {[%emt 0:00:34]} 78. Rf5 {[%emt 0:00:18]} Ra8 {[%emt 0:00:16]} 79. Rc5 {[%emt 0:00:03]} Rb8 {[%emt 0:00:12]} 80. Rc6 {[%emt 0:00:02]} Ra8 {[%emt 0:00:09]} 81. g7 {[%emt 0:00:03]} Rb8 {[%emt 0:00:25]} 82. Kg6 {[%emt 0:00:16]} Rb6 {[%emt 0:00:05]} 83. Rf6 {[%emt 0:00:04]} Rb8 {[%emt 0:00:05]} 84. Re6 {[%emt 0:00:08]} Rb6 {[%emt 0:00:08]} 85. Rf6 {[%emt 0:00:05]} Rb8 {[%emt 0:00:05]} 86. Rf8+ {[%emt 0:00:02]} Rxf8 {[%emt 0:00:02]} 87. gxf8=Q+ Kxf8 {[%emt 0:00:00]} 1/2-1/2

[Event "Czech Open Rapid G1 2024"]
[Site "Pardubice"]
[Date "2024.07.18"]
[Round "5.21"]
[White "Dolensky, Filip"]
[Black "Brendel, Oliver"]
[Result "0-1"]
[Annotator "RC"]
[ECO "B27"]
[WhiteElo "2085"]
[BlackElo "2291"]
[PlyCount "154"]
[EventDate "2024.07.16"]
[EventType "swiss"]
[EventCountry "CZE"]
[SourceTitle "playchess.com"]
[Source "ChessBase"]
[SourceQuality "1"]
[TimeControl "1200+10"]

1. e4 {[%emt 0:00:02]} c5 {[%emt 0:00:01]} 2. c3 {[%emt 0:00:02]} g6 {[%emt 0:00:06]} 3. d4 {[%emt 0:00:03]} cxd4 {[%emt 0:00:02]} 4. cxd4 {[%emt 0:00:02]} d5 {[%emt 0:00:02]} 5. e5 {[%emt 0:00:01]} Nc6 {[%emt 0:00:04]} 6. Bb5 {[%emt 0:00:02]} Bg7 {[%emt 0:00:15]} 7. Nf3 {[%emt 0:00:08]} Bg4 {[%emt 0:00:09]} 8. Nc3 {[%emt 0:00:06]} Nh6 {[%emt 0:00:08]} 9. Bxc6+ {[%emt 0:00:49]} bxc6 {[%emt 0:00:01]} 10. h3 {[%emt 0:00:01]} Bxf3 11. Qxf3 {[%emt 0:00:01]} Nf5 {[%emt 0:00:11]} 12. Qd3 {[%emt 0:00:01]} Qb6 {[%emt 0:01:00]} 13. Be3 {[%emt 0:00:22]} Qxb2 {[%emt 0:01:39]} 14. O-O {[%emt 0:00:21]} Nxe3 {[%emt 0:03:49]} 15. Qxe3 {[%emt 0:00:37]} Qa3 {[%emt 0:01:12]} 16. Rab1 {[%emt 0:00:08]} Qa5 {[%emt 0:02:00]} 17. Rb7 {[%emt 0:03:49]} e6 {[%emt 0:00:10]} 18. h4 {[%emt 0:00:33]} O-O {[%emt 0:01:59]} 19. Rfb1 {[%emt 0:00:59]} Rac8 {[%emt 0:02:51]} 20. Rd7 {[%emt 0:02:20]} c5 {[%emt 0:01:34]} 21. Ne2 {[%emt 0:02:01]} cxd4 {[%emt 0:00:22]} 22. Nxd4 {[%emt 0:00:02]} Rc7 {[%emt 0:02:38]} 23. Nb3 {[%emt 0:03:40]} Qc3 {[%emt 0:00:04]} 24. Rxc7 {[%emt 0:00:04]} Qxc7 {[%emt 0:00:01]} 25. f4 {[%emt 0:00:02]} Qb6 {[%emt 0:00:32]} 26. Qxb6 axb6 {[%emt 0:00:01]} 27. Rc1 {[%emt 0:01:14]} Ra8 {[%emt 0:00:07]} 28. Rc2 {[%emt 0:00:01]} Bf8 {[%emt 0:00:11]} 29. Kf2 {[%emt 0:00:05]} Ra4 {[%emt 0:00:12]} 30. g3 {[%emt 0:00:19]} h6 {[%emt 0:00:44]} 31. Kf3 {[%emt 0:00:14]} Kg7 {[%emt 0:00:10]} 32. g4 {[%emt 0:01:52]} h5 {[%emt 0:01:12]} 33. g5 {[%emt 0:01:14]} Rc4 {[%emt 0:00:27]} 34. Rxc4 {[%emt 0:02:16]} dxc4 {[%emt 0:00:01]} 35. Nd2 {[%emt 0:00:59]} b5 {[%emt 0:00:03]} 36. Ne4 {[%emt 0:00:14]} b4 {[%emt 0:01:03]} 37. Ke3 {[%emt 0:00:10]} b3 {[%emt 0:00:03]} 38. axb3 {[%emt 0:00:02]} cxb3 {[%emt 0:00:01]} 39. Kd3 {[%emt 0:00:42]} Bb4 {[%emt 0:00:05]} 40. Nf2 {[%emt 0:01:00]} Kf8 {[%emt 0:00:35]} 41. Nh3 {[%emt 0:00:10]} Be1 {[%emt 0:00:11]} 42. Ng1 {[%emt 0:00:02]} Bxh4 {[%emt 0:00:07]} 43. Kc3 {[%emt 0:00:02]} Bg3 {[%emt 0:00:06]} 44. Nh3 {[%emt 0:00:01]} Ke7 {[%emt 0:00:17]} 45. Kxb3 {[%emt 0:00:01]} Kd7 {[%emt 0:00:03]} 46. Kc4 {[%emt 0:00:01]} Kc6 {[%emt 0:00:01]} 47. Kd4 {[%emt 0:00:06]} Kb5 {[%emt 0:00:02]} 48. Ke3 {[%emt 0:00:03]} Kc4 {[%emt 0:00:07]} 49. Kf3 {[%emt 0:00:03]} Bh4 {[%emt 0:00:22]} 50. Ke4 {[%emt 0:00:27]} Be1 {[%emt 0:00:21]} 51. Ng1 {[%emt 0:00:07]} Bf2 {[%emt 0:00:06]} 52. Ne2 {[%emt 0:00:40]} Bb6 {[%emt 0:00:19]} 53. Kf3 {[%emt 0:00:25]} Kd3 {[%emt 0:00:14]} 54. Ng3 {[%emt 0:00:06]} h4 {[%emt 0:00:58]} 55. Ne4 {[%emt 0:00:03]} h3 {[%emt 0:00:07]} 56. Nd6 {[%emt 0:00:08]} h2 {[%emt 0:00:01]} 57. Kg2 {[%emt 0:00:01]} Ke3 {[%emt 0:00:05]} 58. Kxh2 {[%emt 0:00:31]} Kxf4 {[%emt 0:00:01]} 59. Nxf7 {[%emt 0:00:03]} Bd4 {[%emt 0:00:19]} 60. Kg2 {[%emt 0:00:19]} Bxe5 {[%emt 0:00:04]} 61. Kf2 {[%emt 0:00:07]} Bc7 {[%emt 0:00:02]} 62. Ke2 {[%emt 0:00:04]} e5 {[%emt 0:00:10]} 63. Kf2 {[%emt 0:00:06]} e4 {[%emt 0:00:12]} 64. Ke2 {[%emt 0:00:03]} Kf5 {[%emt 0:00:03]} 65. Nh8 {[%emt 0:00:27]} Kxg5 {[%emt 0:00:14]} 66. Ke3 {[%emt 0:00:02]} Kf5 {[%emt 0:00:02]} 67. Nf7 {[%emt 0:00:19]} Bb6+ {[%emt 0:00:06]} 68. Ke2 {[%emt 0:00:02]} g5 {[%emt 0:00:34]} 69. Nd6+ {[%emt 0:00:09]} Kf4 {[%emt 0:00:03]} 70. Nc4 {[%emt 0:00:05]} Bd4 {[%emt 0:00:11]} 71. Nd2 {[%emt 0:00:03]} g4 {[%emt 0:00:05]} 72. Nb3 {[%emt 0:00:28]} Bb6 {[%emt 0:00:05]} 73. Nc1 {[%emt 0:00:17]} Be3 {[%emt 0:00:13]} 74. Na2 {[%emt 0:00:06]} g3 {[%emt 0:00:04]} 75. Nc3 {[%emt 0:00:02]} g2 {[%emt 0:00:19]} 76. Nd5+ {[%emt 0:00:21]} Kg5 {[%emt 0:00:17]} 77. Nc3 {[%emt 0:00:11]} g1=Q {[%emt 0:00:10]} 0-1

[Event "Czech Open Rapid G1 2024"]
[Site "Pardubice"]
[Date "2024.07.18"]
[Round "5.22"]
[White "Alexikov, Alexander"]
[Black "Karvatskyi, Oleksii"]
[Result "0-1"]
[Annotator "RC"]
[ECO "B32"]
[WhiteElo "2183"]
[BlackElo "1990"]
[PlyCount "50"]
[EventDate "2024.07.16"]
[EventType "swiss"]
[EventCountry "CZE"]
[SourceTitle "playchess.com"]
[Source "ChessBase"]
[SourceQuality "1"]
[TimeControl "1200+10"]

1. e4 {[%emt 0:00:10]} c5 {[%emt 0:00:02]} 2. Nf3 {[%emt 0:00:01]} Nc6 {[%emt 0:00:02]} 3. d4 {[%emt 0:00:01]} cxd4 {[%emt 0:00:00]} 4. Nxd4 {[%emt 0:00:01]} e5 {[%emt 0:00:02]} 5. Nb5 {[%emt 0:00:03]} d6 {[%emt 0:00:01]} 6. c4 {[%emt 0:01:52]} Be7 {[%emt 0:00:18]} 7. N1c3 {[%emt 0:00:21]} a6 {[%emt 0:00:00]} 8. Na3 {[%emt 0:00:01]} f5 {[%emt 0:00:01]} 9. Nc2 {[%emt 0:00:42]} f4 {[%emt 0:00:04]} 10. Nd5 {[%emt 0:00:25]} Nf6 {[%emt 0:00:07]} 11. Nxf6+ {[%emt 0:00:02]} Bxf6 {[%emt 0:00:02]} 12. Be2 {[%emt 0:00:02]} O-O {[%emt 0:00:04]} 13. Bg4 {[%emt 0:00:14]} Bxg4 {[%emt 0:00:15]} 14. Qxg4 {[%emt 0:00:01]} b5 {[%emt 0:00:00]} 15. Qe2 {[%emt 0:01:07]} Rc8 16. cxb5 {[%emt 0:00:00]} Qa5+ {[%emt 0:00:21]} 17. Bd2 {[%emt 0:00:00]} Qxb5 {[%emt 0:00:04]} 18. Bc3 {[%emt 0:00:33]} Rfd8 {[%emt 0:00:43]} 19. Qxb5 {[%emt 0:01:37]} axb5 {[%emt 0:00:02]} 20. Rd1 {[%emt 0:00:01]} d5 {[%emt 0:00:07]} 21. exd5 {[%emt 0:00:22]} Nd4 {[%emt 0:00:04]} 22. Nb4 {[%emt 0:03:57]} Rc4 {[%emt 0:00:24]} 23. a3 {[%emt 0:00:11]} Be7 {[%emt 0:00:26]} 24. Nc6 {[%emt 0:02:05]} Nxc6 {[%emt 0:00:06]} 25. dxc6 {[%emt 0:00:01]} Re4+ {[%emt 0:00:01]} 0-1

[Event "Czech Open Rapid G1 2024"]
[Site "Pardubice"]
[Date "2024.07.18"]
[Round "5.23"]
[White "Dehmel, Jens"]
[Black "Ocelak, Jakub"]
[Result "0-1"]
[Annotator "RC"]
[ECO "E91"]
[WhiteElo "1980"]
[BlackElo "2206"]
[PlyCount "72"]
[EventDate "2024.07.16"]
[EventType "swiss"]
[EventCountry "CZE"]
[SourceTitle "playchess.com"]
[Source "ChessBase"]
[SourceQuality "1"]
[TimeControl "1200+10"]

1. d4 {[%emt 0:00:01]} Nf6 {[%emt 0:00:06]} 2. c4 {[%emt 0:00:02]} g6 {[%emt 0:00:04]} 3. Nc3 {[%emt 0:00:01]} Bg7 {[%emt 0:00:02]} 4. e4 {[%emt 0:00:02]} O-O {[%emt 0:00:04]} 5. Nf3 {[%emt 0:00:01]} d6 {[%emt 0:00:02]} 6. Be2 {[%emt 0:00:02]} Bg4 {[%emt 0:00:12]} 7. Be3 {[%emt 0:00:02]} Nc6 {[%emt 0:00:12]} 8. d5 {[%emt 0:00:34]} Nb8 {[%emt 0:00:28]} 9. O-O {[%emt 0:00:16]} c6 {[%emt 0:00:21]} 10. Rc1 {[%emt 0:01:01]} Nfd7 {[%emt 0:00:37]} 11. Qb3 {[%emt 0:00:55]} Qc7 {[%emt 0:00:35]} 12. h3 {[%emt 0:00:37]} Bxf3 {[%emt 0:00:03]} 13. Bxf3 {[%emt 0:00:02]} Na6 {[%emt 0:00:20]} 14. Qa3 {[%emt 0:00:40]} c5 {[%emt 0:01:59]} 15. g3 {[%emt 0:00:21]} Qc8 {[%emt 0:02:00]} 16. Qa4 {[%emt 0:00:29]} Ne5 {[%emt 0:01:23]} 17. Bg2 {[%emt 0:00:19]} Nd3 {[%emt 0:00:04]} 18. Rc2 {[%emt 0:03:06]} Nxb2 {[%emt 0:00:46]} 19. Qb3 {[%emt 0:01:05]} Nd3 {[%emt 0:00:03]} 20. f4 {[%emt 0:01:01]} Ndb4 {[%emt 0:00:50]} 21. Re2 {[%emt 0:01:55]} Nc7 {[%emt 0:01:40]} 22. e5 {[%emt 0:00:58]} b6 {[%emt 0:00:45]} 23. Ne4 {[%emt 0:00:22]} dxe5 {[%emt 0:00:56]} 24. d6 {[%emt 0:00:24]} exd6 {[%emt 0:00:53]} 25. Nxd6 {[%emt 0:01:17]} Qe6 {[%emt 0:00:22]} 26. Bxa8 {[%emt 0:03:58]} Rxa8 {[%emt 0:00:08]} 27. Rd2 Qxh3 {[%emt 0:00:17]} 28. Kf2 {[%emt 0:00:29]} exf4 {[%emt 0:01:20]} 29. Bxf4 {[%emt 0:00:08]} Rd8 {[%emt 0:01:22]} 30. Qf3 {[%emt 0:01:43]} Bd4+ {[%emt 0:00:41]} 31. Ke1 {[%emt 0:00:42]} Qd7 {[%emt 0:01:20]} 32. Rxd4 {[%emt 0:00:46]} Nc2+ {[%emt 0:00:19]} 33. Kd1 {[%emt 0:00:41]} Nxd4 {[%emt 0:00:04]} 34. Qe4 {[%emt 0:00:10]} Qg4+ {[%emt 0:00:36]} 35. Kc1 {[%emt 0:00:41]} Rxd6 {[%emt 0:01:15]} 36. Qb7 {[%emt 0:00:48]} Qe2 {[%emt 0:00:33]} 0-1

[Event "Czech Open Rapid G1 2024"]
[Site "Pardubice"]
[Date "2024.07.18"]
[Round "5.24"]
[White "Dostal, Radim"]
[Black "Vrana, Frantisek"]
[Result "0-1"]
[Annotator "RC"]
[ECO "B01"]
[WhiteElo "1961"]
[BlackElo "2147"]
[PlyCount "70"]
[EventDate "2024.07.16"]
[EventType "swiss"]
[EventCountry "CZE"]
[SourceTitle "playchess.com"]
[Source "ChessBase"]
[SourceQuality "1"]
[TimeControl "1200+10"]

1. e4 {[%emt 0:00:02]} d5 {[%emt 0:00:09]} 2. exd5 {[%emt 0:00:01]} Qxd5 {[%emt 0:00:01]} 3. Nc3 {[%emt 0:00:01]} Qa5 {[%emt 0:00:02]} 4. d4 {[%emt 0:00:01]} Bf5 {[%emt 0:00:09]} 5. Nf3 {[%emt 0:00:18]} e6 {[%emt 0:00:19]} 6. Bd2 {[%emt 0:00:39]} c6 {[%emt 0:00:05]} 7. g3 {[%emt 0:00:05]} Nd7 {[%emt 0:00:06]} 8. Bg2 {[%emt 0:00:01]} Ngf6 {[%emt 0:00:05]} 9. O-O {[%emt 0:01:07]} Bb4 {[%emt 0:00:42]} 10. a3 {[%emt 0:00:00]} Bxc3 {[%emt 0:00:06]} 11. Bxc3 {[%emt 0:00:00]} Qc7 {[%emt 0:00:02]} 12. Bd2 {[%emt 0:00:13]} O-O {[%emt 0:00:24]} 13. Bf4 {[%emt 0:00:03]} Qb6 {[%emt 0:00:05]} 14. b3 {[%emt 0:00:23]} Rfd8 {[%emt 0:00:38]} 15. b4 {[%emt 0:04:01]} a5 {[%emt 0:01:28]} 16. Bd2 {[%emt 0:01:55]} axb4 {[%emt 0:00:27]} 17. axb4 {[%emt 0:00:03]} Qb5 {[%emt 0:00:11]} 18. c3 {[%emt 0:01:05]} Ne4 {[%emt 0:01:11]} 19. Re1 {[%emt 0:01:55]} Nb6 {[%emt 0:03:38]} 20. Rxa8 {[%emt 0:05:00]} Rxa8 {[%emt 0:00:12]} 21. Ne5 {[%emt 0:00:01]} Nd6 {[%emt 0:02:13]} 22. g4 {[%emt 0:00:27]} Bg6 {[%emt 0:00:19]} 23. h4 {[%emt 0:00:06]} Qa4 {[%emt 0:00:35]} 24. Qf3 {[%emt 0:00:42]} Nbc4 {[%emt 0:00:30]} 25. Bf4 {[%emt 0:00:27]} Nxe5 {[%emt 0:02:23]} 26. Bxe5 {[%emt 0:00:21]} Nc4 {[%emt 0:00:19]} 27. h5 {[%emt 0:00:10]} Bc2 {[%emt 0:00:07]} 28. g5 {[%emt 0:00:26]} Bf5 {[%emt 0:00:42]} 29. Bh3 {[%emt 0:00:30]} Bxh3 {[%emt 0:00:26]} 30. Qxh3 {[%emt 0:00:01]} Qc2 {[%emt 0:00:01]} 31. Qf3 {[%emt 0:02:20]} Qd2 {[%emt 0:00:33]} 32. Re4 {[%emt 0:00:38]} Qc1+ {[%emt 0:01:34]} 33. Kg2 {[%emt 0:00:25]} Ra1 {[%emt 0:00:14]} 34. Rg4 {[%emt 0:01:51]} Nd2 {[%emt 0:03:47]} 35. Qf4 {[%emt 0:00:31]} Qh1+ {[%emt 0:00:15]} 0-1

[Event "Czech Open Rapid G1 2024"]
[Site "Pardubice"]
[Date "2024.07.18"]
[Round "5.25"]
[White "Tyshniuk, Roman"]
[Black "Kopriva, Martin"]
[Result "1/2-1/2"]
[Annotator "RC"]
[ECO "A75"]
[WhiteElo "1903"]
[BlackElo "2159"]
[PlyCount "167"]
[EventDate "2024.07.16"]
[EventType "swiss"]
[EventCountry "CZE"]
[SourceTitle "playchess.com"]
[Source "ChessBase"]
[SourceQuality "1"]
[TimeControl "1200+10"]

1. d4 {[%emt 0:00:01]} Nf6 {[%emt 0:00:09]} 2. c4 {[%emt 0:00:01]} g6 {[%emt 0:00:01]} 3. Nc3 {[%emt 0:00:00]} Bg7 {[%emt 0:00:01]} 4. e4 {[%emt 0:00:01]} d6 {[%emt 0:00:01]} 5. Nf3 {[%emt 0:00:01]} O-O {[%emt 0:00:01]} 6. Be2 {[%emt 0:00:01]} c5 {[%emt 0:00:05]} 7. d5 {[%emt 0:00:15]} e6 {[%emt 0:00:06]} 8. O-O {[%emt 0:00:13]} exd5 {[%emt 0:00:02]} 9. cxd5 {[%emt 0:00:02]} a6 {[%emt 0:00:04]} 10. a4 {[%emt 0:00:01]} Bg4 {[%emt 0:00:07]} 11. Nd2 {[%emt 0:00:22]} Bxe2 {[%emt 0:00:04]} 12. Qxe2 {[%emt 0:00:01]} Nbd7 {[%emt 0:00:07]} 13. Nc4 {[%emt 0:00:11]} Nb6 {[%emt 0:00:02]} 14. Ne3 {[%emt 0:03:43]} Re8 {[%emt 0:00:03]} 15. a5 {[%emt 0:00:16]} Nbd7 {[%emt 0:00:02]} 16. Nc4 {[%emt 0:00:18]} Ne5 {[%emt 0:00:13]} 17. Nb6 {[%emt 0:00:36]} Rb8 {[%emt 0:00:26]} 18. f4 {[%emt 0:00:26]} Ned7 {[%emt 0:00:57]} 19. Nc4 {[%emt 0:00:03]} Qe7 {[%emt 0:03:33]} 20. Qf3 {[%emt 0:06:40]} Nxe4 {[%emt 0:02:49]} 21. Nxe4 {[%emt 0:00:40]} Qxe4 {[%emt 0:00:02]} 22. Nxd6 {[%emt 0:00:22]} Bd4+ {[%emt 0:01:13]} 23. Kh1 {[%emt 0:00:01]} Qxf3 {[%emt 0:00:03]} 24. gxf3 {[%emt 0:00:01]} Re2 {[%emt 0:00:49]} 25. Ra3 {[%emt 0:00:33]} Nf6 {[%emt 0:00:31]} 26. Rb3 {[%emt 0:00:15]} Rd8 {[%emt 0:00:25]} 27. Ne4 {[%emt 0:01:53]} Rxd5 {[%emt 0:00:46]} 28. f5 {[%emt 0:01:06]} Nxe4 {[%emt 0:04:51]} 29. fxe4 {[%emt 0:00:02]} Rxe4 {[%emt 0:00:01]} 30. fxg6 {[%emt 0:00:02]} hxg6 {[%emt 0:00:31]} 31. Rxb7 {[%emt 0:00:10]} Rf5 {[%emt 0:00:42]} 32. Rxf5 {[%emt 0:00:34]} gxf5 {[%emt 0:00:01]} 33. Kg2 {[%emt 0:00:50]} Re2+ {[%emt 0:00:53]} 34. Kf3 {[%emt 0:00:24]} Rxh2 {[%emt 0:01:47]} 35. Rb6 {[%emt 0:00:24]} Rc2 {[%emt 0:00:14]} 36. Be3 {[%emt 0:00:10]} Kg7 {[%emt 0:02:25]} 37. Rxa6 {[%emt 0:01:18]} Rxb2 {[%emt 0:00:10]} 38. Bxd4+ {[%emt 0:00:01]} cxd4 {[%emt 0:00:02]} 39. Rd6 {[%emt 0:00:07]} Ra2 {[%emt 0:01:00]} 40. a6 {[%emt 0:00:55]} f6 {[%emt 0:00:11]} 41. Rd7+ {[%emt 0:02:03]} Kg6 {[%emt 0:00:01]} 42. a7 {[%emt 0:00:00]} d3 {[%emt 0:00:36]} 43. Kf4 {[%emt 0:00:37]} d2 {[%emt 0:00:16]} 44. Rxd2 {[%emt 0:00:04]} Ra4+ {[%emt 0:00:07]} 45. Kf3 {[%emt 0:00:05]} Rxa7 {[%emt 0:00:04]} 46. Rg2+ {[%emt 0:00:02]} Kf7 {[%emt 0:00:01]} 47. Kf4 {[%emt 0:00:06]} Ra5 {[%emt 0:00:02]} 48. Re2 {[%emt 0:00:17]} Rb5 {[%emt 0:00:09]} 49. Re1 {[%emt 0:00:06]} Rc5 {[%emt 0:00:12]} 50. Re2 {[%emt 0:00:01]} Rb5 {[%emt 0:00:35]} 51. Re1 {[%emt 0:00:02]} Ra5 {[%emt 0:00:00]} 52. Re2 {[%emt 0:00:01]} Ra1 {[%emt 0:00:20]} 53. Kxf5 {[%emt 0:00:06]} Rf1+ {[%emt 0:00:01]} 54. Kg4 {[%emt 0:00:05]} Kg6 {[%emt 0:00:02]} 55. Re8 {[%emt 0:00:06]} Ra1 {[%emt 0:00:32]} 56. Kf4 {[%emt 0:00:13]} Ra4+ {[%emt 0:00:03]} 57. Kf3 {[%emt 0:00:01]} Kg5 {[%emt 0:00:04]} 58. Re3 {[%emt 0:00:12]} f5 {[%emt 0:00:01]} 59. Rb3 {[%emt 0:00:06]} Rh4 {[%emt 0:00:02]} 60. Kf2 {[%emt 0:00:04]} Kg4 {[%emt 0:00:07]} 61. Ra3 {[%emt 0:00:08]} Rh2+ {[%emt 0:00:07]} 62. Kg1 {[%emt 0:00:08]} Re2 {[%emt 0:00:03]} 63. Kf1 {[%emt 0:00:05]} Re4 {[%emt 0:00:01]} 64. Kf2 {[%emt 0:00:05]} Rb4 {[%emt 0:00:02]} 65. Rc3 {[%emt 0:00:05]} Rb2+ {[%emt 0:00:03]} 66. Kf1 {[%emt 0:00:01]} Kf4 {[%emt 0:00:05]} 67. Ra3 {[%emt 0:00:03]} Rb4 {[%emt 0:00:02]} 68. Kf2 {[%emt 0:00:03]} Rc4 {[%emt 0:00:01]} 69. Rb3 {[%emt 0:00:01]} Kg4 {[%emt 0:00:02]} 70. Ra3 {[%emt 0:00:02]} f4 {[%emt 0:00:04]} 71. Rb3 {[%emt 0:00:05]} Rc2+ {[%emt 0:00:01]} 72. Kf1 {[%emt 0:00:01]} Ra2 {[%emt 0:00:05]} 73. Rc3 {[%emt 0:00:01]} Rh2 {[%emt 0:00:01]} 74. Rb3 {[%emt 0:00:03]} Rh1+ {[%emt 0:00:04]} 75. Kf2 {[%emt 0:00:04]} Rh8 {[%emt 0:00:05]} 76. Ra3 {[%emt 0:00:01]} Rg8 {[%emt 0:00:06]} 77. Rb3 {[%emt 0:00:03]} Ra8 {[%emt 0:00:07]} 78. Rc3 {[%emt 0:00:02]} Ra4 {[%emt 0:00:04]} 79. Rb3 {[%emt 0:00:03]} Ra2+ {[%emt 0:00:25]} 80. Kf1 {[%emt 0:00:01]} Ra4 {[%emt 0:00:01]} 81. Kf2 {[%emt 0:00:01]} f3 {[%emt 0:00:01]} 82. Rb8 {[%emt 0:00:02]} Ra2+ {[%emt 0:00:04]} 83. Kf1 {[%emt 0:00:02]} Ra4 {[%emt 0:00:20]} 84. Rg8+ {[%emt 0:00:03]} 1/2-1/2